fUSD/lending_fUSD_20260620
["ID","MTS","AMOUNT","RATE_DAILY","PERIOD"]
[425801717,1781908233000,-1852.42,0.00020225,2]
[425801727,1781908233000,-500.0,0.00021001,2]
[425801718,1781908233000,-200.0,0.00020261,2]
[425801724,1781908233000,-151.0,0.00021,2]
[425801739,1781908233000,-157.0,0.00022,2]
[425801728,1781908233000,-470.84912402,0.00021059,2]
[425801729,1781908233000,-150.0,0.00021108,2]
[425801731,1781908233000,-5722.78,0.00021622,2]
[425801732,1781908233000,-6619.78126211,0.00021741,2]
[425801733,1781908233000,-947.72236332,0.00021841,2]
[425801735,1781908233000,-431.0,0.00022,2]
[425801734,1781908233000,-167.66,0.00021918,2]
[425801740,1781908233000,-186.0,0.00022,2]
[425801713,1781908233000,-3312.99,0.0002,2]
[425801738,1781908233000,-151.0,0.00022,2]
[425801737,1781908233000,-203.0,0.00022,2]
[425801726,1781908233000,-186.0,0.00021,2]
[425801715,1781908233000,-186.0,0.0002,2]
[425801705,1781908233000,-1419.51458905,0.00019829,2]
[425801712,1781908233000,-9703.48161356,0.0002,2]
[425801686,1781908233000,-1613.0535,0.00018733,2]
[425801681,1781908233000,-183.58049962,0.0001863,2]
[425801678,1781908233000,-316.41950038,0.0001863,2]
[425801685,1781908233000,-200.0,0.00018702,2]
[425801683,1781908233000,-150.0,0.00018656,2]
[425801688,1781908233000,-1180.29750078,0.00018759,2]
[425801691,1781908233000,-4910.70249922,0.00018759,2]
[425801693,1781908233000,-299.99,0.00018759,4]
[425801698,1781908233000,-500.0,0.00018904,2]
[425801697,1781908233000,-155.15644922,0.00018824,2]
[425801695,1781908233000,-686.47355078,0.00018824,2]
[425801714,1781908233000,-157.0,0.0002,2]
[425801699,1781908233000,-166.66,0.00018948,2]
[425801700,1781908233000,-177.72356873,0.00019178,2]
[425801702,1781908233000,-166.66,0.00019323,2]
[425801703,1781908233000,-1288.15,0.00019403,2]
[425801736,1781908233000,-496.0,0.00022,2]
[425801704,1781908233000,-166.66,0.00019698,2]
[425801706,1781908233000,-315.11314019,0.00019829,2]
[425801707,1781908233000,-431.0,0.0002,2]
[425801708,1781908233000,-496.0,0.0002,2]
[425801709,1781908233000,-203.0,0.0002,2]
[425801710,1781908233000,-151.0,0.0002,2]
[425801711,1781908233000,-296.51838644,0.0002,2]
[425801701,1781908233000,-1672.7364795,0.00019281,2]
[425801742,1781908233000,-2005.9555727,0.00022021,2]
[425801721,1781908233000,-431.0,0.00021,2]
[425801744,1781908233000,-688.78,0.00022466,2]
[425801773,1781908233000,-194.06,0.00022869,2]
[425801768,1781908233000,-151.0,0.00022569,2]
[425801770,1781908233000,-165.28,0.00022839,2]
[425801776,1781908233000,-496.0,0.00023,2]
[425801777,1781908233000,-203.0,0.00023,2]
[425801775,1781908233000,-431.0,0.00023,2]
[425801778,1781908233000,-157.0,0.00023,2]
[425801779,1781908233000,-186.0,0.00023,2]
[425801780,1781908233000,-1114.97917657,0.00023117,2]
[425801781,1781908233000,-1042.16326169,0.00023117,2]
[425801783,1781908233000,-4093.22,0.00023244,7]
[425801772,1781908233000,-163.24,0.00022861,2]
[425801782,1781908233000,-6619.78126202,0.00023158,2]
[425801787,1781908233000,-431.0,0.00024,2]
[425801785,1781908233000,-5000.0,0.00023832,2]
[425801786,1781908233000,-748.46,0.0002387,2]
[425801789,1781908233000,-203.0,0.00024,2]
[425801788,1781908233000,-496.0,0.00024,2]
[425801792,1781908233000,-602.68,0.0002411,2]
[425801790,1781908233000,-186.0,0.00024,2]
[425801791,1781908233000,-1479.0,0.00024,2]
[425801794,1781908233000,-34478.68,0.00024174,2]
[425801793,1781908233000,-321.03,0.0002411,2]
[425801743,1781908233000,-249.48954031,0.00022407,2]
[425801784,1781908233000,-2236.95670847,0.00023665,2]
[425801774,1781908233000,-16820.31,0.00022919,2]
[425801730,1781908233000,-1934.38338736,0.00021473,2]
[425801769,1781908233000,-500.59356994,0.00022709,2]
[425801771,1781908233000,-150.0,0.00022854,2]
[425801741,1781908233000,-2971.16,0.00022,2]
[425801746,1781908233000,-500.0,0.00022499,2]
[425801745,1781908233000,-366.89,0.00022466,2]
[425801750,1781908233000,-151.0,0.00022569,2]
[425801749,1781908233000,-151.0,0.00022569,2]
[425801748,1781908233000,-151.0,0.00022569,2]
[425801752,1781908233000,-151.0,0.00022569,2]
[425801754,1781908233000,-151.0,0.00022569,2]
[425801751,1781908233000,-151.0,0.00022569,2]
[425801755,1781908233000,-151.0,0.00022569,2]
[425801753,1781908233000,-2080.17592889,0.00022569,2]
[425801747,1781908233000,-500.0,0.00022499,2]
[425801759,1781908233000,-151.0,0.00022569,2]
[425801757,1781908233000,-151.0,0.00022569,2]
[425801765,1781908233000,-151.0,0.00022569,2]
[425801767,1781908233000,-151.0,0.00022569,2]
[425801763,1781908233000,-151.0,0.00022569,2]
[425801764,1781908233000,-151.0,0.00022569,2]
[425801766,1781908233000,-151.0,0.00022569,2]
[425801758,1781908233000,-151.0,0.00022569,2]
[425801761,1781908233000,-151.0,0.00022569,2]
[425801756,1781908233000,-151.0,0.00022569,2]
[425801760,1781908233000,-151.0,0.00022569,2]
[425801762,1781908233000,-151.0,0.00022569,2]
[425801814,1781908234000,-192.0,0.00025,2]
[425801807,1781908234000,-500.0,0.00024999,2]
[425801812,1781908234000,-497.63997692,0.00025,2]
[425801811,1781908234000,-436.0,0.00025,2]
[425801810,1781908234000,-500.0,0.00024999,2]
[425801809,1781908234000,-500.0,0.00024999,2]
[425801808,1781908234000,-500.0,0.00024999,2]
[425801806,1781908234000,-500.0,0.00024999,2]
[425801804,1781908234000,-1303.84718336,0.00024761,2]
[425801805,1781908234000,-1945.73,0.00024866,7]
[425801801,1781908234000,-153.66,0.00024658,2]
[425801803,1781908234000,-162.71,0.00024658,2]
[425801799,1781908234000,-1080.47,0.0002464,7]
[425801800,1781908234000,-155.6,0.00024658,2]
[425801796,1781908234000,-1322.72272155,0.00024213,2]
[425801798,1781908234000,-6619.78126202,0.00024574,2]
[425801797,1781908234000,-150.0,0.00024333,2]
[425801815,1781908234000,-152.56,0.00025,2]
[425801795,1781908234000,-997.00138514,0.00024213,2]
[425801802,1781908234000,-153.66,0.00024658,2]
[425801816,1781908234000,-1000.0,0.00025207,2]
[425801819,1781908234000,-153.66,0.0002544,7]
[425801818,1781908234000,-206.0,0.00025416,2]
[425801813,1781908234000,-217.0,0.00025,2]
[425801836,1781908234000,-300.0,0.00027397,2]
[425801837,1781908234000,-8921.98625842,0.00027397,10]
[425801835,1781908234000,-1500.0,0.00027397,2]
[425801831,1781908234000,-748.46,0.00026853,2]
[425801830,1781908234000,-285.0,0.00026548,7]
[425801829,1781908234000,-216.24448118,0.00026548,7]
[425801834,1781908234000,-381.92462964,0.00027397,2]
[425801828,1781908234000,-475.658601,0.00026495,2]
[425801832,1781908234000,-512.0,0.00027137,2]
[425801827,1781908234000,-306.81013,0.00026495,2]
[425801826,1781908234000,-478.72985,0.0002649,2]
[425801823,1781908234000,-430.49,0.00026027,7]
[425801825,1781908234000,-162.71,0.00026484,30]
[425801824,1781908234000,-229.31,0.00026027,7]
[425801822,1781908234000,-6619.78126202,0.00025991,2]
[425801821,1781908234000,-34478.68,0.00025786,2]
[425801820,1781908234000,-162.71,0.00025571,7]
[425801817,1781908234000,-217.72718406,0.0002526,3]
[425801833,1781908234000,-851.30079262,0.00027297,2]
[425801956,1781908249000,-785.49601378,0.00027397,10]
[425801958,1781908249000,-464.37621455,0.00027397,10]
[425801957,1781908249000,-377.11518298,0.00027397,10]
[425801973,1781908261000,-1354.84326157,0.000285,2]
[425801976,1781908261000,-151.86,0.00028579,2]
[425801969,1781908261000,-1354.84326157,0.000282,2]
[425801970,1781908261000,-582.14226073,0.000283,2]
[425801968,1781908261000,-1354.84326157,0.000279,2]
[425801966,1781908261000,-500.0,0.000275,7]
[425801961,1781908261000,-9943.81,0.00027397,10]
[425801964,1781908261000,-216.24448118,0.000274,10]
[425801965,1781908261000,-6619.78126202,0.00027407,2]
[425801963,1781908261000,-1354.84326157,0.000274,2]
[425801962,1781908261000,-8286.51,0.00027397,10]
[425801960,1781908261000,-1004.55233027,0.00027397,10]
[425801959,1781908261000,-379.044,0.00027397,10]
[425801967,1781908261000,-1354.84326157,0.000276,2]
[425801975,1781908261000,-163.9,0.00028578,2]
[425801971,1781908261000,-582.14226071,0.000283,2]
[425801972,1781908261000,-582.14226071,0.000283,2]
[425801974,1781908261000,-170.65,0.00028572,30]
[425801990,1781908261000,-164.0,0.00028925,30]
[425801985,1781908261000,-157.0,0.00028921,30]
[425801984,1781908261000,-151.86,0.00028905,30]
[425801981,1781908261000,-6619.78126202,0.00028824,2]
[425801983,1781908261000,-163.9,0.00028905,30]
[425801987,1781908261000,-186.0,0.00028921,30]
[425801988,1781908261000,-153.0,0.00028925,30]
[425801989,1781908261000,-162.0,0.00028925,30]
[425801986,1781908261000,-156.0,0.00028921,30]
[425801978,1781908261000,-512.0,0.00028692,3]
[425801980,1781908261000,-151.86,0.00028742,7]
[425801977,1781908261000,-851.30079262,0.00028581,2]
[425801979,1781908261000,-163.9,0.00028741,7]
[425801982,1781908261000,-170.65,0.00028884,7]
[425802002,1781908262000,-170.65,0.00029197,2]
[425802007,1781908262000,-150.0,0.00029534,2]
[425802009,1781908262000,-170.65,0.00029823,7]
[425802008,1781908262000,-652.08616839,0.00029711,2]
[425802005,1781908262000,-200.0,0.00029461,2]
[425802003,1781908262000,-163.91,0.00029232,7]
[425802006,1781908262000,-170.65,0.0002951,30]
[425802004,1781908262000,-151.88,0.00029232,7]
[425801997,1781908262000,-163.9,0.00029069,2]
[425801993,1781908262000,-153.0,0.00028925,30]
[425801996,1781908262000,-249.95504781,0.00029,2]
[425801999,1781908262000,-652.08616841,0.00029132,2]
[425802000,1781908262000,-500.0,0.00029177,17]
[425801994,1781908262000,-203.0,0.00028925,30]
[425802001,1781908262000,-500.0,0.00029177,17]
[425801992,1781908262000,-496.0,0.00028925,30]
[425802010,1781908262000,-851.30079262,0.00029864,2]
[425801991,1781908262000,-431.0,0.00028925,30]
[425801998,1781908262000,-151.86,0.00029069,2]
[425802012,1781908262000,-156.0,0.00029921,30]
[425801995,1781908262000,-151.0,0.00028925,30]
[425802013,1781908262000,-186.0,0.00029921,30]
[425802027,1781908262000,-201.94653927,0.00030137,2]
[425802031,1781908262000,-1202.1851346,0.0003024,2]
[425802028,1781908262000,-424.35,0.000302,30]
[425802030,1781908262000,-151.0,0.00030239,2]
[425802029,1781908262000,-1000.0,0.00030232,2]
[425802026,1781908262000,-170.66,0.00030136,2]
[425802025,1781908262000,-200.0,0.00030058,2]
[425802023,1781908262000,-1376.6292843,0.00030013,7]
[425802024,1781908262000,-500.0,0.00030052,19]
[425802032,1781908262000,-2525.43237623,0.0003024,2]
[425802020,1781908262000,-203.0,0.00029925,30]
[425802022,1781908262000,-1000.0,0.00030013,7]
[425802015,1781908262000,-162.0,0.00029925,30]
[425802014,1781908262000,-153.0,0.00029925,30]
[425802019,1781908262000,-153.0,0.00029925,30]
[425802011,1781908262000,-157.0,0.00029921,30]
[425802018,1781908262000,-496.0,0.00029925,30]
[425802016,1781908262000,-164.0,0.00029925,30]
[425802017,1781908262000,-431.0,0.00029925,30]
[425802021,1781908262000,-151.0,0.00029925,30]
[425802033,1781908277000,363.96,0.00029915,120]
[425802035,1781908420000,-500.0,0.00015978,2]
[425802036,1781908433000,-150.0,0.00016082,2]
[425802038,1781908474000,-500.0,0.00016186,2]
[425802041,1781908488000,-198.0,0.0001644,2]
[425802039,1781908488000,-151.0,0.00016187,2]
[425802040,1781908488000,-151.0,0.00016187,2]
[425802043,1781908514000,-18.24448118,0.00016185,2]
[425802042,1781908514000,-18.24448118,0.0001644,2]
[425802044,1781908554000,-464.37621455,0.00016185,2]
[425802045,1781908566000,200.5,0.00030136,120]
[425802046,1781908568000,-17.37930427,0.00016185,2]
[425802047,1781908593000,-500.20418379,0.00016185,2]
[425802049,1781908594000,-0.20418379,0.00016185,2]
[425802048,1781908594000,-500.0,0.00016185,2]
[425802050,1781908622000,-500.0,0.00016184,2]
[425802051,1781908636000,-152.0,0.00016184,2]
[425802052,1781908636000,-348.0,0.00016184,2]
[425802053,1781908676000,-152.0,0.00016184,2]
[425802054,1781908729000,-500.0,0.00016183,2]
[425802056,1781908774000,-494.53712079,0.00016164,2]
[425802057,1781908820000,-268.06253016,0.00016183,2]
[425802058,1781909039000,-153.0,0.00016184,2]
[425802059,1781909093000,-150.0,0.00016184,2]
[425802060,1781909146000,-151.0,0.00016184,2]
[425802061,1781909200000,-150.0,0.00016184,2]
[425802064,1781909202000,-112.88072195,0.00016184,2]
[425802062,1781909202000,-150.0,0.00016184,2]
[425802063,1781909202000,-151.0,0.00016184,2]
[425802065,1781909253000,-38.11927805,0.00016184,2]
[425802066,1781909307000,-151.0,0.00016184,2]
[425802067,1781909361000,-306.65130117,0.00016183,2]
[425802068,1781909395000,163.24,0.00026569,120]
[425802069,1781909414000,-300.0,0.00016183,2]
[425802072,1781909431000,-151.0,0.00016184,2]
[425802071,1781909431000,-153.0,0.00016184,2]
[425802073,1781909431000,-152.0,0.00016184,2]
[425802074,1781909431000,-150.0,0.00016184,2]
[425802075,1781909431000,-150.0,0.00016184,2]
[425802079,1781909431000,-151.0,0.00016184,2]
[425802078,1781909431000,-151.0,0.00016184,2]
[425802077,1781909431000,-150.0,0.00016184,2]
[425802076,1781909431000,-151.0,0.00016184,2]
[425802081,1781909431000,-151.0,0.00016184,2]
[425802080,1781909431000,-150.0,0.00016184,2]
[425802082,1781909431000,-152.0,0.00016184,2]
[425802085,1781909431000,-150.0,0.00016184,2]
[425802084,1781909431000,-151.0,0.00016184,2]
[425802083,1781909431000,-150.0,0.00016184,2]
[425802091,1781909431000,-152.0,0.00016184,2]
[425802087,1781909431000,-151.0,0.00016184,2]
[425802102,1781909431000,-150.0,0.00016185,2]
[425802104,1781909431000,-274.95381473,0.00016438,2]
[425802103,1781909431000,-500.0,0.00016438,2]
[425802098,1781909431000,-152.0,0.00016185,2]
[425802100,1781909431000,-150.0,0.00016185,2]
[425802099,1781909431000,-150.0,0.00016185,2]
[425802101,1781909431000,-151.0,0.00016185,2]
[425802086,1781909431000,-153.0,0.00016184,2]
[425802095,1781909431000,-550.0,0.00016184,2]
[425802096,1781909431000,-160.0,0.00016185,2]
[425802093,1781909431000,-150.0,0.00016184,2]
[425802094,1781909431000,-153.0,0.00016184,2]
[425802089,1781909431000,-152.0,0.00016184,2]
[425802088,1781909431000,-151.0,0.00016184,2]
[425802097,1781909431000,-151.0,0.00016185,2]
[425802106,1781909437000,-298.83511222,0.00016184,2]
[425802108,1781909437000,-197.42064924,0.00016184,2]
[425802107,1781909437000,-500.0,0.00016184,2]
[425802109,1781909437000,-262.0867587,0.00016184,2]
[425802110,1781909437000,-225.04618527,0.00016438,2]
[425802111,1781909437000,-191.4175808,0.00016438,2]
[425802112,1781909437000,-308.5824192,0.00016438,2]
[425802114,1781909437000,-144.40944645,0.00016735,2]
[425802115,1781909437000,-55.59055355,0.00016735,2]
[425802118,1781909437000,-86.795661,0.00017802,2]
[425802117,1781909437000,-150.99,0.00017802,2]
[425802113,1781909437000,-332.50414813,0.00016438,2]
[425802116,1781909437000,-171.0,0.00017301,2]
[425802153,1781909452000,-1046.88928713,0.00017802,2]
[425802152,1781909452000,-347.06853256,0.00017802,2]
[425802151,1781909452000,-205.024339,0.00017802,2]
[425802154,1781909700000,-2435.53989,0.00016529,2]
[425802159,1781909901000,-151.0,0.00016529,2]
[425802160,1781910012000,326.06,0.00028989,120]
[425802162,1781910123000,-500.0,0.00016527,2]
[425802172,1781910345000,-203.61157202,0.00016525,2]
[425802173,1781910475000,9999.0,0.00015,2]
[425802174,1781910553000,1000.0,0.00030137,120]
[425802175,1781910565000,-151.0,0.00016523,2]
[425802176,1781910568000,1000.0,0.00030137,120]
[425802177,1781910630000,600.15629349,0.00030137,120]
[425802193,1781910637000,-500.0,0.00016437,2]
[425802191,1781910637000,-500.0,0.00016,10]
[425802192,1781910637000,-589.05,0.00016437,2]
[425802255,1781910638000,-150.0,0.00016632,2]
[425802259,1781910638000,-321.57330401,0.00017355,7]
[425802248,1781910638000,-1418.3395312,0.00016549,2]
[425802253,1781910638000,-153.0,0.00016555,2]
[425802240,1781910638000,-151.0,0.00016531,2]
[425802246,1781910638000,-27274.6581315,0.00016545,2]
[425802244,1781910638000,-20952.3591267,0.00016537,2]
[425802261,1781910638000,-151.0,0.00017601,2]
[425802242,1781910638000,-150.0,0.00016535,2]
[425802238,1781910638000,-152.0,0.00016529,2]
[425802251,1781910638000,-596.8293591,0.00016551,2]
[425802257,1781910638000,-151.0,0.0001694,2]
[425802263,1781910638000,-151.0,0.00017601,2]
[425802265,1781910638000,-151.0,0.00017601,2]
[425802269,1781910638000,-152.0,0.00017601,2]
[425802275,1781910638000,-151.0,0.00017601,2]
[425802278,1781910638000,-1327.301,0.00017602,2]
[425802279,1781910638000,-795.35522594,0.000177,2]
[425802234,1781910638000,-152.0,0.00016529,2]
[425802273,1781910638000,-151.0,0.00017601,2]
[425802280,1781910638000,-403.0,0.000177,5]
[425802277,1781910638000,-153.0,0.00017602,2]
[425802271,1781910638000,-151.0,0.00017601,2]
[425802283,1781910638000,-938.70267852,0.0001789,2]
[425802267,1781910638000,-151.0,0.00017601,2]
[425802230,1781910638000,-152.0,0.00016529,2]
[425802198,1781910638000,-500.0,0.00016523,2]
[425802222,1781910638000,-150.0,0.00016529,2]
[425802282,1781910638000,-1500.0,0.00017831,2]
[425802194,1781910638000,-670.85,0.00016437,2]
[425802196,1781910638000,-8737.18826607,0.00016437,2]
[425802195,1781910638000,-857.03103393,0.00016437,2]
[425802197,1781910638000,-151.0,0.00016523,2]
[425802201,1781910638000,-152.0,0.00016524,2]
[425802200,1781910638000,-201.81337544,0.00016523,2]
[425802199,1781910638000,-361.1110059,0.00016523,2]
[425802203,1781910638000,-151.0,0.00016525,2]
[425802207,1781910638000,-151.0,0.00016528,2]
[425802208,1781910638000,-151.0,0.00016528,2]
[425802202,1781910638000,-151.0,0.00016525,2]
[425802204,1781910638000,-152.0,0.00016526,2]
[425802205,1781910638000,-152.0,0.00016527,2]
[425802210,1781910638000,-150.0,0.00016528,2]
[425802206,1781910638000,-174.32271838,0.00016527,2]
[425802215,1781910638000,-152.0,0.00016528,2]
[425802211,1781910638000,-151.0,0.00016528,2]
[425802217,1781910638000,-150.99,0.00016528,2]
[425802213,1781910638000,-151.0,0.00016528,2]
[425802219,1781910638000,-8606.03,0.00016528,2]
[425802228,1781910638000,-151.0,0.00016529,2]
[425802236,1781910638000,-151.0,0.00016529,2]
[425802226,1781910638000,-150.0,0.00016529,2]
[425802232,1781910638000,-150.0,0.00016529,2]
[425802224,1781910638000,-151.0,0.00016529,2]
[425802284,1781910638000,-17087.24812489,0.00018,2]
[425802306,1781910638000,-247.0,0.0002,2]
[425802287,1781910638000,-1555.5,0.00018379,2]
[425802311,1781910638000,-166.66,0.00020199,2]
[425802319,1781910638000,-615.0,0.00021,2]
[425802318,1781910638000,-492.0,0.00021,2]
[425802316,1781910638000,-155.0,0.00021,2]
[425802314,1781910638000,-1798.80895522,0.00020571,2]
[425802321,1781910638000,-247.0,0.00021,2]
[425802320,1781910638000,-151.0,0.00021,2]
[425802322,1781910638000,-234.0,0.00021,2]
[425802323,1781910638000,-253.0,0.00021,2]
[425802325,1781910638000,-1934.38338736,0.00021667,2]
[425802328,1781910638000,-5000.0,0.00021918,2]
[425802312,1781910638000,-155.4,0.00020381,2]
[425802324,1781910638000,-1865.36488656,0.00021119,2]
[425802329,1781910638000,-200.0,0.00021918,2]
[425802327,1781910638000,-338.0,0.000218,2]
[425802326,1781910638000,-326.06,0.00021742,2]
[425802332,1781910638000,-492.0,0.00022,2]
[425802333,1781910638000,-615.0,0.00022,2]
[425802334,1781910638000,-151.0,0.00022,2]
[425802331,1781910638000,-160.98534359,0.00022,2]
[425802339,1781910638000,-2005.9555727,0.00022215,2]
[425802337,1781910638000,-234.0,0.00022,2]
[425802338,1781910638000,-253.0,0.00022,2]
[425802281,1781910638000,-500.0,0.00017784,2]
[425802330,1781910638000,-166.0,0.00022,2]
[425802315,1781910638000,-166.66,0.00020591,2]
[425802336,1781910638000,-2319.77,0.00022,2]
[425802317,1781910638000,-156.0,0.00021,2]
[425802313,1781910638000,-500.0,0.00020384,2]
[425802288,1781910638000,-155.4,0.0001841,2]
[425802286,1781910638000,-200.0,0.00018327,2]
[425802289,1781910638000,-169.59,0.00018589,2]
[425802290,1781910638000,-166.66,0.0001863,2]
[425802292,1781910638000,-1613.0535,0.00018927,2]
[425802291,1781910638000,-3529.98,0.00018875,2]
[425802293,1781910638000,-166.66,0.00019022,2]
[425802295,1781910638000,-166.66,0.00019414,2]
[425802294,1781910638000,-326.06,0.00019326,2]
[425802297,1781910638000,-1672.7364795,0.00019475,2]
[425802296,1781910638000,-234.0,0.00019452,2]
[425802285,1781910638000,-250.0,0.00018175,2]
[425802299,1781910638000,-166.66,0.00019806,2]
[425802335,1781910638000,-247.0,0.00022,2]
[425802307,1781910638000,-234.0,0.0002,2]
[425802308,1781910638000,-253.0,0.0002,2]
[425802309,1781910638000,-1734.62772924,0.00020023,2]
[425802302,1781910638000,-156.0,0.0002,2]
[425802310,1781910638000,-1921.68994501,0.00020089,7]
[425802300,1781910638000,-163.2,0.00019861,2]
[425802303,1781910638000,-492.0,0.0002,2]
[425802305,1781910638000,-151.0,0.0002,2]
[425802304,1781910638000,-615.0,0.0002,2]
[425802301,1781910638000,-155.0,0.0002,2]
[425802298,1781910638000,-210.23,0.000196,8]
[425802366,1781910639000,-151.0,0.00022763,2]
[425802372,1781910639000,-151.0,0.00022763,2]
[425802369,1781910639000,-151.0,0.00022763,2]
[425802370,1781910639000,-500.0,0.00022763,2]
[425802371,1781910639000,-151.0,0.00022763,2]
[425802374,1781910639000,-151.0,0.00022763,2]
[425802373,1781910639000,-500.0,0.00022763,2]
[425802375,1781910639000,-151.0,0.00022763,2]
[425802376,1781910639000,-500.0,0.00022763,2]
[425802368,1781910639000,-151.0,0.00022763,2]
[425802380,1781910639000,-151.0,0.00022763,2]
[425802379,1781910639000,-500.0,0.00022763,2]
[425802378,1781910639000,-151.0,0.00022763,2]
[425802381,1781910639000,-151.0,0.00022763,2]
[425802382,1781910639000,-500.0,0.00022763,2]
[425802385,1781910639000,-500.0,0.00022763,2]
[425802384,1781910639000,-151.0,0.00022763,2]
[425802383,1781910639000,-151.0,0.00022763,2]
[425802386,1781910639000,-151.0,0.00022763,2]
[425802388,1781910639000,-500.0,0.00022763,2]
[425802367,1781910639000,-500.0,0.00022763,2]
[425802390,1781910639000,-151.0,0.00022763,2]
[425802377,1781910639000,-151.0,0.00022763,2]
[425802364,1781910639000,-151.0,0.00022763,2]
[425802354,1781910639000,-151.0,0.00022763,2]
[425802361,1781910639000,-151.0,0.00022763,2]
[425802389,1781910639000,-151.0,0.00022763,2]
[425802342,1781910639000,-20952.3591267,0.00022317,2]
[425802340,1781910639000,-200.0,0.00022254,2]
[425802341,1781910639000,-27274.6581315,0.00022256,2]
[425802343,1781910639000,-155.4,0.00022353,2]
[425802344,1781910639000,-158.01004219,0.00022407,2]
[425802345,1781910639000,-1722.08,0.00022466,2]
[425802346,1781910639000,-7691.10219459,0.000225,2]
[425802348,1781910639000,-533.45748234,0.0002271,2]
[425802347,1781910639000,-2435.53989,0.00022605,2]
[425802349,1781910639000,-5820.2163243,0.00022753,2]
[425802350,1781910639000,-151.0,0.00022763,2]
[425802351,1781910639000,-151.0,0.00022763,2]
[425802352,1781910639000,-151.0,0.00022763,2]
[425802353,1781910639000,-200.0,0.00022763,2]
[425802357,1781910639000,-151.0,0.00022763,2]
[425802356,1781910639000,-151.0,0.00022763,2]
[425802358,1781910639000,-151.0,0.00022763,2]
[425802355,1781910639000,-151.0,0.00022763,2]
[425802359,1781910639000,-2080.17592889,0.00022763,2]
[425802363,1781910639000,-500.0,0.00022763,2]
[425802360,1781910639000,-151.0,0.00022763,2]
[425802365,1781910639000,-500.0,0.00022763,2]
[425802362,1781910639000,-151.0,0.00022763,2]
[425802387,1781910639000,-151.0,0.00022763,2]
[425802392,1781910639000,-151.0,0.00022763,2]
[425802431,1781910639000,-5071.37016899,0.00024089,7]
[425802420,1781910639000,-2236.95670847,0.00023859,2]
[425802421,1781910639000,-1042.46859471,0.00024,2]
[425802419,1781910639000,-200.0,0.00023859,2]
[425802422,1781910639000,-3600.0,0.00024,2]
[425802425,1781910639000,-11196.39178881,0.00024,2]
[425802428,1781910639000,-247.0,0.00024,2]
[425802426,1781910639000,-492.0,0.00024,2]
[425802427,1781910639000,-615.0,0.00024,2]
[425802429,1781910639000,-234.0,0.00024,2]
[425802433,1781910639000,-3308.61,0.00024174,2]
[425802436,1781910639000,-42852.3,0.00024174,2]
[425802430,1781910639000,-253.0,0.00024,2]
[425802432,1781910639000,-326.06,0.00024157,2]
[425802435,1781910639000,-2863.82,0.00024174,2]
[425802434,1781910639000,-980.44,0.00024174,2]
[425802440,1781910639000,-151.0,0.00024407,2]
[425802437,1781910639000,-3772.41973319,0.0002421,2]
[425802439,1781910639000,-150.0,0.00024333,2]
[425802438,1781910639000,-155.4,0.00024324,2]
[425802441,1781910639000,-200.0,0.00024407,2]